Workbook

Sheet Sheet1
A1: INSTRUCTIONS: Use this form when a single information collection document involves multiple reporting and recordkeeping requirements. The totals of the figures in cols. (D), (F), (H), (I), & (K) should be entered in items 17 & 18 of OMB 83-1. For cols. (E), (F), & (J), the averages of the totals shall be computed, as follows, and then entered on the OMB 83-1. (F) Total/Total = (E) Average (H) Total/(F) Total = (G) Average (K) Total/(I) Total = (J) Average NOTE: The columns will calculate automatically. If Col. E's response is something other than annually, i.e., 1/6 years, list as "1/6" & decimal will display. | I1: TITLE OF INFORMATION COLLECTION DOCUMENT | N1: OMB NO.
I3: Tart Cherries Grown in the States of Michigan, New York, Pennsylvania, Oregon, Utah, Washington, and Wisconsin, Marketing Order No. 930 | N3: 0581-0177
N6: DATE PREPARED
N8: 2023-09-08
A10: IDENTIFICATION OF REPORTING OR RECORDKEEPING REQUIREMENT | H10: ANNUAL BURDEN
H12: REPORTS | M12: RECORDS
O14: TOTAL
G15: FORMS NO (S) | H15: NO. OF | I15: NO OF | J15: TOTAL ANNUAL | K15: HOURS | L15: TOTAL | M15: NO. OF | N15: ANNUAL | O15: RECORD-
A16: SECTION OF | B16: DESCRIPTION | G16: (If "none" | H16: RESPONDENTS | I16: RESPONSES | J16: RESPONSES | K16: PER | L16: HOURS | M16: RECORD- | N16: HOURS PER | O16: KEEPING HOURS
A17: REGS. | G17: so state) | I17: PER | J17: (Col. D x E) | K17: RESPONSE | L17: (Col. F x G) | M17: KEEPERS | N17: RECORD- | O17: (Col. I x J)
I18: RESPONDENT | N18: KEEPER
A19: (A) | B19: (B) | G19: (C) | H19: (D) | I19: (E) | J19: (F) | K19: (G) | L19: (H) | M19: (I) | N19: (J) | O19: (K)
A20: 930.26 | B20: Background/Acceptance Statement for Public Members and Alternates | G20: SC-8 | H20: 2 | I20: 0.3330 | J20: =SUM(H20*I20) -> 0.67 | K20: 0.0833 | L20: =SUM(J20*K20) -> 0.06 | O20: 0.00
A21: 930.26 | B21: Background/Acceptance Statement for Industry Members and Alternates | G21: SC-9 | H21: 34 | I21: 0.3330 | J21: =SUM(H21*I21) -> 11.32 | K21: 0.0833 | L21: =SUM(J21*K21) -> 0.94 | O21: 0.00
A22: 900.14 930.83 | B22: Producers Referendum Ballot (Amendment and Termination) | G22: SC-43 | H22: 600 | I22: 0.1667 | J22: =SUM(H22*I22) -> 100.00 | K22: 0.3300 | L22: =SUM(J22*K22) -> 33.00 | O22: =SUM(M22*N22) -> 0.00
A23: 900.14 930.83 | B23: Coop. Association of Producers Referendum Ballot (Amendment and Termination) | G23: SC-43A | H23: 10 | I23: 0.1667 | J23: =SUM(H23*I23) -> 1.67 | K23: 0.3300 | L23: =SUM(J23*K23) -> 0.55 | O23: =SUM(M23*N23) -> 0.00
A24: 900.14 930.83 | B24: Processor's Referendum Ballot (Amendment and Termination) | G24: SC-44 | H24: 40 | I24: 0.1667 | J24: 6.67 | K24: 0.3300 | L24: 2.20 | O24: 0.00
A25: 900.14 | B25: Marketing Agreement | G25: SC-45 | H25: 40 | I25: 0.1667 | J25: 6.67 | K25: 0.1300 | L25: 0.87 | O25: 0.00
A26: 900.14 | B26: Certificate of Resolution | G26: SC-45A | H26: 40 | I26: 0.1667 | J26: 6.67 | K26: 0.0830 | L26: 0.55 | O26: 0.00
A27: 930.23 | B27: Nomination Petition Forms | G27: SC-48 | H27: 640 | I27: 0.3333 | J27: 213.33 | K27: 0.3300 | L27: 70.40 | O27: 0.00
A28: 930.23 | B28: Nomination Ballot | G28: SC-49 | H28: 640 | I28: 0.3333 | J28: 213.33 | K28: 0.1670 | L28: 35.63 | O28: 0.00
A29: 930.70(a) | B29: Weekly Raw Product Report | G29: CIAB Form 1 | H29: 40 | I29: 14.0000 | J29: =SUM(H29*I29) -> 560.00 | K29: 0.2500 | L29: =SUM(J29*K29) -> 140.00 | O29: =SUM(M29*N29) -> 0.00
A30: 930.70(a) | B30: Cherries Acquired from Producers | G30: CIAB Form 2 | H30: 40 | I30: 1.0000 | J30: 40.00 | K30: 0.2500 | L30: 10.00 | O30: 0.00
A31: 930.70(a) | B31: Sales/Inventory Report | G31: CIAB Form 3 | H31: 40 | I31: 4.0000 | J31: 160.00 | K31: 0.4160 | L31: 66.56 | O31: 0.00
B32: SUBTOTAL | J32: =SUM(J20:J31) -> 1,320.32 | K32: =AVERAGE(K20:K31) -> 0.2319 | L32: =SUM(L20:L31) -> 361 | M32: =SUM(M22:M27) -> 0.00 | O32: =SUM(O22:O31) -> 0.00
B33: TOTAL OF ALL PAGES | J33: =SUM(J32+J63) -> 3,270.32 | K33: =AVERAGE(K32,K63) -> 0.2164 | L33: =SUM(L32+L63) -> 740.67 | M33: =SUM(M32+M63) -> 0.00 | O33: =SUM(O32+O63) -> 0.00
A34: TOTAL - COLUMNS "F" AND "I" = OMB 831, 13 b; COLUMNS "H" AND "K" = OMB 831, 13c | J34: =SUM(J33+M33) -> 3,270.32 | L34: =SUM(L33+O33) -> 741
A36: INSTRUCTIONS: Use this form when a single information collection document involves multiple reporting and recordkeeping requirements. The totals of the figures in cols. (D), (F), (H), (I), & (K) should be entered in tems 17 & 18 of OMB 83-1. For cols. (E), (F), & (J), the averages of the totals shall be computed, as follows, and then entered on the OMB 83-1. (F) Total/Total = (E) Average (H) Total/(F) Total = (G) Average (K) Total/(I) Total = (J) Average NOTE: The columns will calculate automatically. If Col. E's response is something other than annually, i.e., 1/6 years, list as "1/6" & decimal will display. | I36: TITLE OF INFORMATION COLLECTION DOCUMENT | N36: OMB NO.
I38: Tart Cherries Grown in the States of Michigan, New York, Pennsylvania, Oregon, Utah, Washington, and Wisconsin, Marketing Order No. 930 | N38: 0581-0177
N41: DATE PREPARED
N43: 2023-09-08
A45: IDENTIFICATION OF REPORTING OR RECORDKEEPING REQUIREMENT | H45: ANNUAL BURDEN
H47: REPORTS | M47: RECORDS
O49: TOTAL
G50: FORMS NO (S) | H50: NO. OF | I50: NO OF | J50: TOTAL ANNUAL | K50: HOURS | L50: TOTAL | M50: NO. OF | N50: ANNUAL | O50: RECORD-
A51: SECTION OF | B51: DESCRIPTION | G51: (If "none" | H51: RESPONDENTS | I51: RESPONSES | J51: RESPONSES | K51: PER | L51: HOURS | M51: RECORD- | N51: HOURS PER | O51: KEEPING HOURS
A52: REGS. | G52: so state) | I52: PER | J52: (Col. D x E) | K52: RESPONSE | L52: (Col. F x G) | M52: KEEPERS | N52: RECORD- | O52: (Col. I x J)
I53: RESPONDENT | N53: KEEPER
A54: (A) | B54: (B) | G54: (C) | H54: (D) | I54: (E) | J54: (F) | K54: (G) | L54: (H) | M54: (I) | N54: (J) | O54: (K)
A55: 930.70(b) | B55: Report of Export Sales Activity | G55: CIAB Form 3A | H55: 40 | I55: 1.0000 | J55: =SUM(H55*I55) -> 40.00 | K55: 0.0830 | L55: =SUM(J55*K55) -> 3.32 | O55: =SUM(M55*N55) -> 0.00
A56: 930.70(a) | B56: Handler Reserve Plan and Final Pack Report | G56: CIAB Form 4 | H56: 40 | I56: 1.0000 | J56: =SUM(H56*I56) -> 40.00 | K56: 0.2500 | L56: =SUM(J56*K56) -> 10.00 | O56: =SUM(M56*N56) -> 0.00
A57: 930.70(a) | B57: Inventory Reserve Summary | G57: CIAB Form 5A | H57: 40 | I57: 14.0000 | J57: =SUM(H57*I57) -> 560.00 | K57: 0.2500 | L57: =SUM(J57*K57) -> 140.00 | O57: =SUM(M57*N57) -> 0.00
A58: 930.70(b) | B58: Inventory Location Report | G58: CIAB Form 5B | H58: 40 | I58: 15.0000 | J58: =SUM(H58*I58) -> 600.00 | K58: 0.1660 | L58: =SUM(J58*K58) -> 99.60 | O58: =SUM(M58*N58) -> 0.00
A59: 930.58(c) | B59: Tart Cherry Orchard Map and Grower Diversion Application | G59: CIAB Form 6 | H59: 600 | I59: 1.0000 | J59: =SUM(H59*I59) -> 600.00 | K59: 0.1660 | L59: =SUM(J59*K59) -> 99.60 | O59: =SUM(M59*N59) -> 0.00
A60: 930.59, 930.162(c) | B60: New Market Application for Handlers | G60: CIAB Form 7 | H60: 40 | I60: 1.0000 | J60: =SUM(H60*I60) -> 40.00 | K60: 0.3300 | L60: =SUM(J60*K60) -> 13.20 | O60: =SUM(M60*N60) -> 0.00
A61: 930.70(b) | B61: Producer List for Referendum | G61: No form number | H61: 40 | I61: 1.0000 | J61: =SUM(H61*I61) -> 40.00 | K61: 0.3300 | L61: =SUM(J61*K61) -> 13.20 | O61: =SUM(M61*N61) -> 0.00
A62: 930.70(b) | B62: MOA between Handlers Regarding Responsibilities for Tart Cherry Production under the Marketing Order for Red Tart Cherries | G62: No form number | H62: 10 | I62: 3.0000 | J62: =SUM(H62*I62) -> 30.00 | K62: 0.0330 | L62: =SUM(J62*K62) -> 0.99 | O62: =SUM(M62*N62) -> 0.00
B63: SUBTOTAL | J63: =SUM(J55:J62) -> 1,950.00 | K63: =AVERAGE(K55:K62) -> 0.2010 | L63: =SUM(L55:L62) -> 380 | M63: =SUM(M55:M62) -> 0 | O63: =SUM(O55:O62) -> 0
